Workbook

Sheet Inventarverzeichnis
R1: 1
A2: Inventarverzeichnis / Stand 31.12.2025
A4: Nr. | B4: Datum der Beschaffung | C4: Anzahl | D4: Beschreibung des Gegenstandes | E4: Neuwert | F4: Ende der Abschrei-bung | G4: Lauf-zeit in Jahren | H4: Spalte1 | I4: Wert nach Ende der Abschreibung | J4: Monatlicher Abschreibungswert | K4: Heutiges Datum | L4: Lauf-zeit bisher | M4: Abschreibung | N4: Zeitwert | O4: Standort oder Benutzer
A5: =ROW()-4 -> 1 | B5: 2021-12-01 | C5: 1 | D5: Fernseher | E5: 699 | G5: 3 | H5: =IF(Inventarverzeichnis[[#This Row],[Neuwert]]>0,Inventarverzeichnis[[#This Row],[Lauf-zeit in Jahren]]*12,"") -> 36 | I5: =$R$1 -> 1 | J5: =IF(Inventarverzeichnis[[#This Row],[Neuwert]]>0,SLN(Inventarverzeichnis[[#This Row],[Neuwert]],Inventarverzeichnis[[#This Row],[Wert nach Ende der Abschreibung]],Inventarverzeichnis[[#This Row],[Lauf-zeit in Jahren]])/12,"") -> 19.38888889 | K5: =IF(Inventarverzeichnis[[#This Row],[Neuwert]]>0,TODAY(),"") -> 2026-03-04 | L5: =IF(Inventarverzeichnis[[#This Row],[Neuwert]]>0,DATEDIF(Inventarverzeichnis[[#This Row],[Datum der Beschaffung]],Inventarverzeichnis[[#This Row],[Heutiges Datum]],"m"),"") -> 51 | M5: =IF(Inventarverzeichnis[[#This Row],[Neuwert]]>0,Inventarverzeichnis[[#This Row],[Neuwert]]-Inventarverzeichnis[[#This Row],[Monatlicher Abschreibungswert]]*Inventarverzeichnis[[#This Row],[Lauf-zeit bisher]],"") -> -289.8333333 | N5: =IF(Inventarverzeichnis[[#This Row],[Abschreibung]]>1,Inventarverzeichnis[[#This Row],[Abschreibung]],1) -> 1 | O5: Gst
A6: =ROW()-4 -> 2 | B6: 2021-12-01 | C6: 1 | D6: Notebook | E6: 649 | G6: 3 | H6: =IF(Inventarverzeichnis[[#This Row],[Neuwert]]>0,Inventarverzeichnis[[#This Row],[Lauf-zeit in Jahren]]*12,"") -> 36 | I6: 1 | J6: =IF(Inventarverzeichnis[[#This Row],[Neuwert]]>0,SLN(Inventarverzeichnis[[#This Row],[Neuwert]],Inventarverzeichnis[[#This Row],[Wert nach Ende der Abschreibung]],Inventarverzeichnis[[#This Row],[Lauf-zeit in Jahren]])/12,"") -> 18 | K6: =IF(Inventarverzeichnis[[#This Row],[Neuwert]]>0,TODAY(),"") -> 2026-03-04 | L6: =IF(Inventarverzeichnis[[#This Row],[Neuwert]]>0,DATEDIF(Inventarverzeichnis[[#This Row],[Datum der Beschaffung]],Inventarverzeichnis[[#This Row],[Heutiges Datum]],"m"),"") -> 51 | M6: =IF(Inventarverzeichnis[[#This Row],[Neuwert]]>0,Inventarverzeichnis[[#This Row],[Neuwert]]-Inventarverzeichnis[[#This Row],[Monatlicher Abschreibungswert]]*Inventarverzeichnis[[#This Row],[Lauf-zeit bisher]],"") -> -269 | N6: =IF(Inventarverzeichnis[[#This Row],[Abschreibung]]>1,Inventarverzeichnis[[#This Row],[Abschreibung]],1) -> 1 | O6: Vors.
A7: 3 | B7: 2021-12-01 | C7: 1 | D7: Notebook | E7: 649 | G7: 3 | H7: =IF(Inventarverzeichnis[[#This Row],[Neuwert]]>0,Inventarverzeichnis[[#This Row],[Lauf-zeit in Jahren]]*12,"") -> 36 | I7: 1 | J7: =IF(Inventarverzeichnis[[#This Row],[Neuwert]]>0,SLN(Inventarverzeichnis[[#This Row],[Neuwert]],Inventarverzeichnis[[#This Row],[Wert nach Ende der Abschreibung]],Inventarverzeichnis[[#This Row],[Lauf-zeit in Jahren]])/12,"") -> 18 | K7: =IF(Inventarverzeichnis[[#This Row],[Neuwert]]>0,TODAY(),"") -> 2026-03-04 | L7: =IF(Inventarverzeichnis[[#This Row],[Neuwert]]>0,DATEDIF(Inventarverzeichnis[[#This Row],[Datum der Beschaffung]],Inventarverzeichnis[[#This Row],[Heutiges Datum]],"m"),"") -> 51 | M7: =IF(Inventarverzeichnis[[#This Row],[Neuwert]]>0,Inventarverzeichnis[[#This Row],[Neuwert]]-Inventarverzeichnis[[#This Row],[Monatlicher Abschreibungswert]]*Inventarverzeichnis[[#This Row],[Lauf-zeit bisher]],"") -> -269 | N7: =IF(Inventarverzeichnis[[#This Row],[Abschreibung]]>1,Inventarverzeichnis[[#This Row],[Abschreibung]],1) -> 1 | O7: Stellv.
A8: 4 | B8: 2022-01-01 | C8: 18 | D8: Stühle | E8: 1520 | G8: 8 | H8: =IF(Inventarverzeichnis[[#This Row],[Neuwert]]>0,Inventarverzeichnis[[#This Row],[Lauf-zeit in Jahren]]*12,"") -> 96 | I8: 1 | J8: =IF(Inventarverzeichnis[[#This Row],[Neuwert]]>0,SLN(Inventarverzeichnis[[#This Row],[Neuwert]],Inventarverzeichnis[[#This Row],[Wert nach Ende der Abschreibung]],Inventarverzeichnis[[#This Row],[Lauf-zeit in Jahren]])/12,"") -> 15.82291667 | K8: =IF(Inventarverzeichnis[[#This Row],[Neuwert]]>0,TODAY(),"") -> 2026-03-04 | L8: =IF(Inventarverzeichnis[[#This Row],[Neuwert]]>0,DATEDIF(Inventarverzeichnis[[#This Row],[Datum der Beschaffung]],Inventarverzeichnis[[#This Row],[Heutiges Datum]],"m"),"") -> 50 | M8: =IF(Inventarverzeichnis[[#This Row],[Neuwert]]>0,Inventarverzeichnis[[#This Row],[Neuwert]]-Inventarverzeichnis[[#This Row],[Monatlicher Abschreibungswert]]*Inventarverzeichnis[[#This Row],[Lauf-zeit bisher]],"") -> 728.8541667 | N8: =IF(Inventarverzeichnis[[#This Row],[Abschreibung]]>1,Inventarverzeichnis[[#This Row],[Abschreibung]],1) -> 728.8541667 | O8: Gst
A9: 5 | B9: 2022-01-01 | C9: 1 | D9: Tisch | E9: 339.9 | G9: 8 | H9: =IF(Inventarverzeichnis[[#This Row],[Neuwert]]>0,Inventarverzeichnis[[#This Row],[Lauf-zeit in Jahren]]*12,"") -> 96 | I9: 1 | J9: =IF(Inventarverzeichnis[[#This Row],[Neuwert]]>0,SLN(Inventarverzeichnis[[#This Row],[Neuwert]],Inventarverzeichnis[[#This Row],[Wert nach Ende der Abschreibung]],Inventarverzeichnis[[#This Row],[Lauf-zeit in Jahren]])/12,"") -> 3.530208333 | K9: =IF(Inventarverzeichnis[[#This Row],[Neuwert]]>0,TODAY(),"") -> 2026-03-04 | L9: =IF(Inventarverzeichnis[[#This Row],[Neuwert]]>0,DATEDIF(Inventarverzeichnis[[#This Row],[Datum der Beschaffung]],Inventarverzeichnis[[#This Row],[Heutiges Datum]],"m"),"") -> 50 | M9: =IF(Inventarverzeichnis[[#This Row],[Neuwert]]>0,Inventarverzeichnis[[#This Row],[Neuwert]]-Inventarverzeichnis[[#This Row],[Monatlicher Abschreibungswert]]*Inventarverzeichnis[[#This Row],[Lauf-zeit bisher]],"") -> 163.3895833 | N9: =IF(Inventarverzeichnis[[#This Row],[Abschreibung]]>1,Inventarverzeichnis[[#This Row],[Abschreibung]],1) -> 163.3895833 | O9: Gst
A10: 6 | B10: 2022-03-01 | C10: 1 | D10: TV-Wagen | E10: 76.99 | G10: 8 | H10: =IF(Inventarverzeichnis[[#This Row],[Neuwert]]>0,Inventarverzeichnis[[#This Row],[Lauf-zeit in Jahren]]*12,"") -> 96 | I10: 1 | J10: =IF(Inventarverzeichnis[[#This Row],[Neuwert]]>0,SLN(Inventarverzeichnis[[#This Row],[Neuwert]],Inventarverzeichnis[[#This Row],[Wert nach Ende der Abschreibung]],Inventarverzeichnis[[#This Row],[Lauf-zeit in Jahren]])/12,"") -> 0.7915625 | K10: =IF(Inventarverzeichnis[[#This Row],[Neuwert]]>0,TODAY(),"") -> 2026-03-04 | L10: =IF(Inventarverzeichnis[[#This Row],[Neuwert]]>0,DATEDIF(Inventarverzeichnis[[#This Row],[Datum der Beschaffung]],Inventarverzeichnis[[#This Row],[Heutiges Datum]],"m"),"") -> 48 | M10: =IF(Inventarverzeichnis[[#This Row],[Neuwert]]>0,Inventarverzeichnis[[#This Row],[Neuwert]]-Inventarverzeichnis[[#This Row],[Monatlicher Abschreibungswert]]*Inventarverzeichnis[[#This Row],[Lauf-zeit bisher]],"") -> 38.995 | N10: =IF(Inventarverzeichnis[[#This Row],[Abschreibung]]>1,Inventarverzeichnis[[#This Row],[Abschreibung]],1) -> 38.995 | O10: Gst
A11: 7 | B11: 2022-07-01 | C11: 2 | D11: Mikrofon-Ständer | E11: 112.98 | G11: 3 | H11: =IF(Inventarverzeichnis[[#This Row],[Neuwert]]>0,Inventarverzeichnis[[#This Row],[Lauf-zeit in Jahren]]*12,"") -> 36 | I11: 1 | J11: =IF(Inventarverzeichnis[[#This Row],[Neuwert]]>0,SLN(Inventarverzeichnis[[#This Row],[Neuwert]],Inventarverzeichnis[[#This Row],[Wert nach Ende der Abschreibung]],Inventarverzeichnis[[#This Row],[Lauf-zeit in Jahren]])/12,"") -> 3.110555556 | K11: =IF(Inventarverzeichnis[[#This Row],[Neuwert]]>0,TODAY(),"") -> 2026-03-04 | L11: =IF(Inventarverzeichnis[[#This Row],[Neuwert]]>0,DATEDIF(Inventarverzeichnis[[#This Row],[Datum der Beschaffung]],Inventarverzeichnis[[#This Row],[Heutiges Datum]],"m"),"") -> 44 | M11: =IF(Inventarverzeichnis[[#This Row],[Neuwert]]>0,Inventarverzeichnis[[#This Row],[Neuwert]]-Inventarverzeichnis[[#This Row],[Monatlicher Abschreibungswert]]*Inventarverzeichnis[[#This Row],[Lauf-zeit bisher]],"") -> -23.88444444 | N11: =IF(Inventarverzeichnis[[#This Row],[Abschreibung]]>1,Inventarverzeichnis[[#This Row],[Abschreibung]],1) -> 1 | O11: Gst
A12: 8 | B12: 2022-08-01 | C12: 1 | D12: Monitor | E12: 173.99 | G12: 3 | H12: =IF(Inventarverzeichnis[[#This Row],[Neuwert]]>0,Inventarverzeichnis[[#This Row],[Lauf-zeit in Jahren]]*12,"") -> 36 | I12: 1 | J12: =IF(Inventarverzeichnis[[#This Row],[Neuwert]]>0,SLN(Inventarverzeichnis[[#This Row],[Neuwert]],Inventarverzeichnis[[#This Row],[Wert nach Ende der Abschreibung]],Inventarverzeichnis[[#This Row],[Lauf-zeit in Jahren]])/12,"") -> 4.805277778 | K12: =IF(Inventarverzeichnis[[#This Row],[Neuwert]]>0,TODAY(),"") -> 2026-03-04 | L12: =IF(Inventarverzeichnis[[#This Row],[Neuwert]]>0,DATEDIF(Inventarverzeichnis[[#This Row],[Datum der Beschaffung]],Inventarverzeichnis[[#This Row],[Heutiges Datum]],"m"),"") -> 43 | M12: =IF(Inventarverzeichnis[[#This Row],[Neuwert]]>0,Inventarverzeichnis[[#This Row],[Neuwert]]-Inventarverzeichnis[[#This Row],[Monatlicher Abschreibungswert]]*Inventarverzeichnis[[#This Row],[Lauf-zeit bisher]],"") -> -32.63694444 | N12: =IF(Inventarverzeichnis[[#This Row],[Abschreibung]]>1,Inventarverzeichnis[[#This Row],[Abschreibung]],1) -> 1 | O12: Gst
A13: 9 | B13: 2023-06-01 | C13: 1 | D13: Alu-Gartengarnitur | E13: 279.95 | G13: 8 | H13: =IF(Inventarverzeichnis[[#This Row],[Neuwert]]>0,Inventarverzeichnis[[#This Row],[Lauf-zeit in Jahren]]*12,"") -> 96 | I13: 1 | J13: =IF(Inventarverzeichnis[[#This Row],[Neuwert]]>0,SLN(Inventarverzeichnis[[#This Row],[Neuwert]],Inventarverzeichnis[[#This Row],[Wert nach Ende der Abschreibung]],Inventarverzeichnis[[#This Row],[Lauf-zeit in Jahren]])/12,"") -> 2.905729167 | K13: =IF(Inventarverzeichnis[[#This Row],[Neuwert]]>0,TODAY(),"") -> 2026-03-04 | L13: =IF(Inventarverzeichnis[[#This Row],[Neuwert]]>0,DATEDIF(Inventarverzeichnis[[#This Row],[Datum der Beschaffung]],Inventarverzeichnis[[#This Row],[Heutiges Datum]],"m"),"") -> 33 | M13: =IF(Inventarverzeichnis[[#This Row],[Neuwert]]>0,Inventarverzeichnis[[#This Row],[Neuwert]]-Inventarverzeichnis[[#This Row],[Monatlicher Abschreibungswert]]*Inventarverzeichnis[[#This Row],[Lauf-zeit bisher]],"") -> 184.0609375 | N13: =IF(Inventarverzeichnis[[#This Row],[Abschreibung]]>1,Inventarverzeichnis[[#This Row],[Abschreibung]],1) -> 184.0609375 | O13: Gst
A14: 10 | B14: 2023-08-01 | C14: 2 | D14: Monitor | E14: 235.98 | G14: 3 | H14: =IF(Inventarverzeichnis[[#This Row],[Neuwert]]>0,Inventarverzeichnis[[#This Row],[Lauf-zeit in Jahren]]*12,"") -> 36 | I14: 1 | J14: =IF(Inventarverzeichnis[[#This Row],[Neuwert]]>0,SLN(Inventarverzeichnis[[#This Row],[Neuwert]],Inventarverzeichnis[[#This Row],[Wert nach Ende der Abschreibung]],Inventarverzeichnis[[#This Row],[Lauf-zeit in Jahren]])/12,"") -> 6.527222222 | K14: =IF(Inventarverzeichnis[[#This Row],[Neuwert]]>0,TODAY(),"") -> 2026-03-04 | L14: =IF(Inventarverzeichnis[[#This Row],[Neuwert]]>0,DATEDIF(Inventarverzeichnis[[#This Row],[Datum der Beschaffung]],Inventarverzeichnis[[#This Row],[Heutiges Datum]],"m"),"") -> 31 | M14: =IF(Inventarverzeichnis[[#This Row],[Neuwert]]>0,Inventarverzeichnis[[#This Row],[Neuwert]]-Inventarverzeichnis[[#This Row],[Monatlicher Abschreibungswert]]*Inventarverzeichnis[[#This Row],[Lauf-zeit bisher]],"") -> 33.63611111 | N14: =IF(Inventarverzeichnis[[#This Row],[Abschreibung]]>1,Inventarverzeichnis[[#This Row],[Abschreibung]],1) -> 33.63611111 | O14: Gst
A15: 11 | B15: 2023-11-01 | C15: 1 | D15: Standtheke | E15: 264.13 | G15: 8 | H15: =IF(Inventarverzeichnis[[#This Row],[Neuwert]]>0,Inventarverzeichnis[[#This Row],[Lauf-zeit in Jahren]]*12,"") -> 96 | I15: 1 | J15: =IF(Inventarverzeichnis[[#This Row],[Neuwert]]>0,SLN(Inventarverzeichnis[[#This Row],[Neuwert]],Inventarverzeichnis[[#This Row],[Wert nach Ende der Abschreibung]],Inventarverzeichnis[[#This Row],[Lauf-zeit in Jahren]])/12,"") -> 2.7409375 | K15: =IF(Inventarverzeichnis[[#This Row],[Neuwert]]>0,TODAY(),"") -> 2026-03-04 | L15: =IF(Inventarverzeichnis[[#This Row],[Neuwert]]>0,DATEDIF(Inventarverzeichnis[[#This Row],[Datum der Beschaffung]],Inventarverzeichnis[[#This Row],[Heutiges Datum]],"m"),"") -> 28 | M15: =IF(Inventarverzeichnis[[#This Row],[Neuwert]]>0,Inventarverzeichnis[[#This Row],[Neuwert]]-Inventarverzeichnis[[#This Row],[Monatlicher Abschreibungswert]]*Inventarverzeichnis[[#This Row],[Lauf-zeit bisher]],"") -> 187.38375 | N15: =IF(Inventarverzeichnis[[#This Row],[Abschreibung]]>1,Inventarverzeichnis[[#This Row],[Abschreibung]],1) -> 187.38375 | O15: Jugend
A16: 12 | B16: 2024-02-01 | C16: 1 | D16: Computer | E16: 496 | G16: 3 | H16: =IF(Inventarverzeichnis[[#This Row],[Neuwert]]>0,Inventarverzeichnis[[#This Row],[Lauf-zeit in Jahren]]*12,"") -> 36 | I16: 1 | J16: =IF(Inventarverzeichnis[[#This Row],[Neuwert]]>0,SLN(Inventarverzeichnis[[#This Row],[Neuwert]],Inventarverzeichnis[[#This Row],[Wert nach Ende der Abschreibung]],Inventarverzeichnis[[#This Row],[Lauf-zeit in Jahren]])/12,"") -> 13.75 | K16: =IF(Inventarverzeichnis[[#This Row],[Neuwert]]>0,TODAY(),"") -> 2026-03-04 | L16: =IF(Inventarverzeichnis[[#This Row],[Neuwert]]>0,DATEDIF(Inventarverzeichnis[[#This Row],[Datum der Beschaffung]],Inventarverzeichnis[[#This Row],[Heutiges Datum]],"m"),"") -> 25 | M16: =IF(Inventarverzeichnis[[#This Row],[Neuwert]]>0,Inventarverzeichnis[[#This Row],[Neuwert]]-Inventarverzeichnis[[#This Row],[Monatlicher Abschreibungswert]]*Inventarverzeichnis[[#This Row],[Lauf-zeit bisher]],"") -> 152.25 | N16: =IF(Inventarverzeichnis[[#This Row],[Abschreibung]]>1,Inventarverzeichnis[[#This Row],[Abschreibung]],1) -> 152.25 | O16: Stellv.
A17: 13 | B17: 2024-02-01 | C17: 1 | D17: JBL-Lautsprecher | E17: 429.99 | G17: 3 | H17: =IF(Inventarverzeichnis[[#This Row],[Neuwert]]>0,Inventarverzeichnis[[#This Row],[Lauf-zeit in Jahren]]*12,"") -> 36 | I17: 1 | J17: =IF(Inventarverzeichnis[[#This Row],[Neuwert]]>0,SLN(Inventarverzeichnis[[#This Row],[Neuwert]],Inventarverzeichnis[[#This Row],[Wert nach Ende der Abschreibung]],Inventarverzeichnis[[#This Row],[Lauf-zeit in Jahren]])/12,"") -> 11.91638889 | K17: =IF(Inventarverzeichnis[[#This Row],[Neuwert]]>0,TODAY(),"") -> 2026-03-04 | L17: =IF(Inventarverzeichnis[[#This Row],[Neuwert]]>0,DATEDIF(Inventarverzeichnis[[#This Row],[Datum der Beschaffung]],Inventarverzeichnis[[#This Row],[Heutiges Datum]],"m"),"") -> 25 | M17: =IF(Inventarverzeichnis[[#This Row],[Neuwert]]>0,Inventarverzeichnis[[#This Row],[Neuwert]]-Inventarverzeichnis[[#This Row],[Monatlicher Abschreibungswert]]*Inventarverzeichnis[[#This Row],[Lauf-zeit bisher]],"") -> 132.0802778 | N17: =IF(Inventarverzeichnis[[#This Row],[Abschreibung]]>1,Inventarverzeichnis[[#This Row],[Abschreibung]],1) -> 132.0802778 | O17: Gst
A18: 14 | B18: 2025-02-01 | C18: 1 | D18: GEEKOM Mini-PC | E18: 829 | G18: 3 | H18: =IF(Inventarverzeichnis[[#This Row],[Neuwert]]>0,Inventarverzeichnis[[#This Row],[Lauf-zeit in Jahren]]*12,"") -> 36 | I18: 1 | J18: =IF(Inventarverzeichnis[[#This Row],[Neuwert]]>0,SLN(Inventarverzeichnis[[#This Row],[Neuwert]],Inventarverzeichnis[[#This Row],[Wert nach Ende der Abschreibung]],Inventarverzeichnis[[#This Row],[Lauf-zeit in Jahren]])/12,"") -> 23 | K18: =IF(Inventarverzeichnis[[#This Row],[Neuwert]]>0,TODAY(),"") -> 2026-03-04 | L18: =IF(Inventarverzeichnis[[#This Row],[Neuwert]]>0,DATEDIF(Inventarverzeichnis[[#This Row],[Datum der Beschaffung]],Inventarverzeichnis[[#This Row],[Heutiges Datum]],"m"),"") -> 13 | M18: =IF(Inventarverzeichnis[[#This Row],[Neuwert]]>0,Inventarverzeichnis[[#This Row],[Neuwert]]-Inventarverzeichnis[[#This Row],[Monatlicher Abschreibungswert]]*Inventarverzeichnis[[#This Row],[Lauf-zeit bisher]],"") -> 530 | N18: =IF(Inventarverzeichnis[[#This Row],[Abschreibung]]>1,Inventarverzeichnis[[#This Row],[Abschreibung]],1) -> 530 | O18: Gst
A19: 15 | B19: 2025-02-01 | C19: 1 | D19: Computer-Kamera L22-2K | E19: 64.99 | G19: 3 | H19: =IF(Inventarverzeichnis[[#This Row],[Neuwert]]>0,Inventarverzeichnis[[#This Row],[Lauf-zeit in Jahren]]*12,"") -> 36 | I19: 1 | J19: =IF(Inventarverzeichnis[[#This Row],[Neuwert]]>0,SLN(Inventarverzeichnis[[#This Row],[Neuwert]],Inventarverzeichnis[[#This Row],[Wert nach Ende der Abschreibung]],Inventarverzeichnis[[#This Row],[Lauf-zeit in Jahren]])/12,"") -> 1.7775 | K19: =IF(Inventarverzeichnis[[#This Row],[Neuwert]]>0,TODAY(),"") -> 2026-03-04 | L19: =IF(Inventarverzeichnis[[#This Row],[Neuwert]]>0,DATEDIF(Inventarverzeichnis[[#This Row],[Datum der Beschaffung]],Inventarverzeichnis[[#This Row],[Heutiges Datum]],"m"),"") -> 13 | M19: =IF(Inventarverzeichnis[[#This Row],[Neuwert]]>0,Inventarverzeichnis[[#This Row],[Neuwert]]-Inventarverzeichnis[[#This Row],[Monatlicher Abschreibungswert]]*Inventarverzeichnis[[#This Row],[Lauf-zeit bisher]],"") -> 41.8825 | N19: =IF(Inventarverzeichnis[[#This Row],[Abschreibung]]>1,Inventarverzeichnis[[#This Row],[Abschreibung]],1) -> 41.8825 | O19: Gst
A20: 16 | B20: 2025-02-01 | C20: 1 | D20: Esszimmertisch | E20: 93.9 | G20: 8 | H20: =IF(Inventarverzeichnis[[#This Row],[Neuwert]]>0,Inventarverzeichnis[[#This Row],[Lauf-zeit in Jahren]]*12,"") -> 96 | I20: 1 | J20: =IF(Inventarverzeichnis[[#This Row],[Neuwert]]>0,SLN(Inventarverzeichnis[[#This Row],[Neuwert]],Inventarverzeichnis[[#This Row],[Wert nach Ende der Abschreibung]],Inventarverzeichnis[[#This Row],[Lauf-zeit in Jahren]])/12,"") -> 0.9677083333 | K20: =IF(Inventarverzeichnis[[#This Row],[Neuwert]]>0,TODAY(),"") -> 2026-03-04 | L20: =IF(Inventarverzeichnis[[#This Row],[Neuwert]]>0,DATEDIF(Inventarverzeichnis[[#This Row],[Datum der Beschaffung]],Inventarverzeichnis[[#This Row],[Heutiges Datum]],"m"),"") -> 13 | M20: =IF(Inventarverzeichnis[[#This Row],[Neuwert]]>0,Inventarverzeichnis[[#This Row],[Neuwert]]-Inventarverzeichnis[[#This Row],[Monatlicher Abschreibungswert]]*Inventarverzeichnis[[#This Row],[Lauf-zeit bisher]],"") -> 81.31979167 | N20: =IF(Inventarverzeichnis[[#This Row],[Abschreibung]]>1,Inventarverzeichnis[[#This Row],[Abschreibung]],1) -> 81.31979167 | O20: Gst
A21: 17 | B21: 2025-02-01 | C21: 2 | D21: HDMI- und USB-Kabel | E21: 79.94 | G21: 8 | H21: =IF(Inventarverzeichnis[[#This Row],[Neuwert]]>0,Inventarverzeichnis[[#This Row],[Lauf-zeit in Jahren]]*12,"") -> 96 | I21: 1 | J21: =IF(Inventarverzeichnis[[#This Row],[Neuwert]]>0,SLN(Inventarverzeichnis[[#This Row],[Neuwert]],Inventarverzeichnis[[#This Row],[Wert nach Ende der Abschreibung]],Inventarverzeichnis[[#This Row],[Lauf-zeit in Jahren]])/12,"") -> 0.8222916667 | K21: =IF(Inventarverzeichnis[[#This Row],[Neuwert]]>0,TODAY(),"") -> 2026-03-04 | L21: =IF(Inventarverzeichnis[[#This Row],[Neuwert]]>0,DATEDIF(Inventarverzeichnis[[#This Row],[Datum der Beschaffung]],Inventarverzeichnis[[#This Row],[Heutiges Datum]],"m"),"") -> 13 | M21: =IF(Inventarverzeichnis[[#This Row],[Neuwert]]>0,Inventarverzeichnis[[#This Row],[Neuwert]]-Inventarverzeichnis[[#This Row],[Monatlicher Abschreibungswert]]*Inventarverzeichnis[[#This Row],[Lauf-zeit bisher]],"") -> 69.25020833 | N21: =IF(Inventarverzeichnis[[#This Row],[Abschreibung]]>1,Inventarverzeichnis[[#This Row],[Abschreibung]],1) -> 69.25020833 | O21: Gst
A22: 18 | B22: 2025-02-01 | C22: 2 | D22: Tisch-Einbau-Steckdose | E22: 132.97 | G22: 8 | H22: =IF(Inventarverzeichnis[[#This Row],[Neuwert]]>0,Inventarverzeichnis[[#This Row],[Lauf-zeit in Jahren]]*12,"") -> 96 | I22: 1 | J22: =IF(Inventarverzeichnis[[#This Row],[Neuwert]]>0,SLN(Inventarverzeichnis[[#This Row],[Neuwert]],Inventarverzeichnis[[#This Row],[Wert nach Ende der Abschreibung]],Inventarverzeichnis[[#This Row],[Lauf-zeit in Jahren]])/12,"") -> 1.3746875 | K22: =IF(Inventarverzeichnis[[#This Row],[Neuwert]]>0,TODAY(),"") -> 2026-03-04 | L22: =IF(Inventarverzeichnis[[#This Row],[Neuwert]]>0,DATEDIF(Inventarverzeichnis[[#This Row],[Datum der Beschaffung]],Inventarverzeichnis[[#This Row],[Heutiges Datum]],"m"),"") -> 13 | M22: =IF(Inventarverzeichnis[[#This Row],[Neuwert]]>0,Inventarverzeichnis[[#This Row],[Neuwert]]-Inventarverzeichnis[[#This Row],[Monatlicher Abschreibungswert]]*Inventarverzeichnis[[#This Row],[Lauf-zeit bisher]],"") -> 115.0990625 | N22: =IF(Inventarverzeichnis[[#This Row],[Abschreibung]]>1,Inventarverzeichnis[[#This Row],[Abschreibung]],1) -> 115.0990625 | O22: Gst
A23: 19 | B23: 2025-02-01 | C23: 1 | D23: Schreibtisch | E23: 396.2 | G23: 8 | H23: =IF(Inventarverzeichnis[[#This Row],[Neuwert]]>0,Inventarverzeichnis[[#This Row],[Lauf-zeit in Jahren]]*12,"") -> 96 | I23: 1 | J23: =IF(Inventarverzeichnis[[#This Row],[Neuwert]]>0,SLN(Inventarverzeichnis[[#This Row],[Neuwert]],Inventarverzeichnis[[#This Row],[Wert nach Ende der Abschreibung]],Inventarverzeichnis[[#This Row],[Lauf-zeit in Jahren]])/12,"") -> 4.116666667 | K23: =IF(Inventarverzeichnis[[#This Row],[Neuwert]]>0,TODAY(),"") -> 2026-03-04 | L23: =IF(Inventarverzeichnis[[#This Row],[Neuwert]]>0,DATEDIF(Inventarverzeichnis[[#This Row],[Datum der Beschaffung]],Inventarverzeichnis[[#This Row],[Heutiges Datum]],"m"),"") -> 13 | M23: =IF(Inventarverzeichnis[[#This Row],[Neuwert]]>0,Inventarverzeichnis[[#This Row],[Neuwert]]-Inventarverzeichnis[[#This Row],[Monatlicher Abschreibungswert]]*Inventarverzeichnis[[#This Row],[Lauf-zeit bisher]],"") -> 342.6833333 | N23: =IF(Inventarverzeichnis[[#This Row],[Abschreibung]]>1,Inventarverzeichnis[[#This Row],[Abschreibung]],1) -> 342.6833333 | O23: Gst
A24: 20 | B24: 2025-02-01 | C24: 2 | D24: Tischplatte | E24: 183.26 | G24: 8 | H24: =IF(Inventarverzeichnis[[#This Row],[Neuwert]]>0,Inventarverzeichnis[[#This Row],[Lauf-zeit in Jahren]]*12,"") -> 96 | I24: 1 | J24: =IF(Inventarverzeichnis[[#This Row],[Neuwert]]>0,SLN(Inventarverzeichnis[[#This Row],[Neuwert]],Inventarverzeichnis[[#This Row],[Wert nach Ende der Abschreibung]],Inventarverzeichnis[[#This Row],[Lauf-zeit in Jahren]])/12,"") -> 1.898541667 | K24: =IF(Inventarverzeichnis[[#This Row],[Neuwert]]>0,TODAY(),"") -> 2026-03-04 | L24: =IF(Inventarverzeichnis[[#This Row],[Neuwert]]>0,DATEDIF(Inventarverzeichnis[[#This Row],[Datum der Beschaffung]],Inventarverzeichnis[[#This Row],[Heutiges Datum]],"m"),"") -> 13 | M24: =IF(Inventarverzeichnis[[#This Row],[Neuwert]]>0,Inventarverzeichnis[[#This Row],[Neuwert]]-Inventarverzeichnis[[#This Row],[Monatlicher Abschreibungswert]]*Inventarverzeichnis[[#This Row],[Lauf-zeit bisher]],"") -> 158.5789583 | N24: =IF(Inventarverzeichnis[[#This Row],[Abschreibung]]>1,Inventarverzeichnis[[#This Row],[Abschreibung]],1) -> 158.5789583 | O24: Gst
A25: 21 | B25: 2025-03-01 | C25: 4 | D25: Stühle | E25: 371.81 | G25: 8 | H25: =IF(Inventarverzeichnis[[#This Row],[Neuwert]]>0,Inventarverzeichnis[[#This Row],[Lauf-zeit in Jahren]]*12,"") -> 96 | I25: 1 | J25: =IF(Inventarverzeichnis[[#This Row],[Neuwert]]>0,SLN(Inventarverzeichnis[[#This Row],[Neuwert]],Inventarverzeichnis[[#This Row],[Wert nach Ende der Abschreibung]],Inventarverzeichnis[[#This Row],[Lauf-zeit in Jahren]])/12,"") -> 3.862604167 | K25: =IF(Inventarverzeichnis[[#This Row],[Neuwert]]>0,TODAY(),"") -> 2026-03-04 | L25: =IF(Inventarverzeichnis[[#This Row],[Neuwert]]>0,DATEDIF(Inventarverzeichnis[[#This Row],[Datum der Beschaffung]],Inventarverzeichnis[[#This Row],[Heutiges Datum]],"m"),"") -> 12 | M25: =IF(Inventarverzeichnis[[#This Row],[Neuwert]]>0,Inventarverzeichnis[[#This Row],[Neuwert]]-Inventarverzeichnis[[#This Row],[Monatlicher Abschreibungswert]]*Inventarverzeichnis[[#This Row],[Lauf-zeit bisher]],"") -> 325.45875 | N25: =IF(Inventarverzeichnis[[#This Row],[Abschreibung]]>1,Inventarverzeichnis[[#This Row],[Abschreibung]],1) -> 325.45875 | O25: Gst
A26: 22 | B26: 2025-04-01 | C26: 1 | D26: Notebook | E26: 333.99 | G26: 3 | H26: =IF(Inventarverzeichnis[[#This Row],[Neuwert]]>0,Inventarverzeichnis[[#This Row],[Lauf-zeit in Jahren]]*12,"") -> 36 | I26: 1 | J26: =IF(Inventarverzeichnis[[#This Row],[Neuwert]]>0,SLN(Inventarverzeichnis[[#This Row],[Neuwert]],Inventarverzeichnis[[#This Row],[Wert nach Ende der Abschreibung]],Inventarverzeichnis[[#This Row],[Lauf-zeit in Jahren]])/12,"") -> 9.249722222 | K26: =IF(Inventarverzeichnis[[#This Row],[Neuwert]]>0,TODAY(),"") -> 2026-03-04 | L26: =IF(Inventarverzeichnis[[#This Row],[Neuwert]]>0,DATEDIF(Inventarverzeichnis[[#This Row],[Datum der Beschaffung]],Inventarverzeichnis[[#This Row],[Heutiges Datum]],"m"),"") -> 11 | M26: =IF(Inventarverzeichnis[[#This Row],[Neuwert]]>0,Inventarverzeichnis[[#This Row],[Neuwert]]-Inventarverzeichnis[[#This Row],[Monatlicher Abschreibungswert]]*Inventarverzeichnis[[#This Row],[Lauf-zeit bisher]],"") -> 232.2430556 | N26: =IF(Inventarverzeichnis[[#This Row],[Abschreibung]]>1,Inventarverzeichnis[[#This Row],[Abschreibung]],1) -> 232.2430556 | O26: Stellv.
A27: 23 | B27: 2025-04-01 | C27: 9 | D27: Stühle | E27: 1520.82 | G27: 8 | H27: =IF(Inventarverzeichnis[[#This Row],[Neuwert]]>0,Inventarverzeichnis[[#This Row],[Lauf-zeit in Jahren]]*12,"") -> 96 | I27: 1 | J27: =IF(Inventarverzeichnis[[#This Row],[Neuwert]]>0,SLN(Inventarverzeichnis[[#This Row],[Neuwert]],Inventarverzeichnis[[#This Row],[Wert nach Ende der Abschreibung]],Inventarverzeichnis[[#This Row],[Lauf-zeit in Jahren]])/12,"") -> 15.83145833 | K27: =IF(Inventarverzeichnis[[#This Row],[Neuwert]]>0,TODAY(),"") -> 2026-03-04 | L27: =IF(Inventarverzeichnis[[#This Row],[Neuwert]]>0,DATEDIF(Inventarverzeichnis[[#This Row],[Datum der Beschaffung]],Inventarverzeichnis[[#This Row],[Heutiges Datum]],"m"),"") -> 11 | M27: =IF(Inventarverzeichnis[[#This Row],[Neuwert]]>0,Inventarverzeichnis[[#This Row],[Neuwert]]-Inventarverzeichnis[[#This Row],[Monatlicher Abschreibungswert]]*Inventarverzeichnis[[#This Row],[Lauf-zeit bisher]],"") -> 1346.673958 | N27: =IF(Inventarverzeichnis[[#This Row],[Abschreibung]]>1,Inventarverzeichnis[[#This Row],[Abschreibung]],1) -> 1346.673958 | O27: Gst
A28: 24 | B28: 2025-04-01 | C28: 2 | D28: Tischplattenverbinder | E28: 62.4 | G28: 8 | H28: =IF(Inventarverzeichnis[[#This Row],[Neuwert]]>0,Inventarverzeichnis[[#This Row],[Lauf-zeit in Jahren]]*12,"") -> 96 | I28: 1 | J28: =IF(Inventarverzeichnis[[#This Row],[Neuwert]]>0,SLN(Inventarverzeichnis[[#This Row],[Neuwert]],Inventarverzeichnis[[#This Row],[Wert nach Ende der Abschreibung]],Inventarverzeichnis[[#This Row],[Lauf-zeit in Jahren]])/12,"") -> 0.6395833333 | K28: =IF(Inventarverzeichnis[[#This Row],[Neuwert]]>0,TODAY(),"") -> 2026-03-04 | L28: =IF(Inventarverzeichnis[[#This Row],[Neuwert]]>0,DATEDIF(Inventarverzeichnis[[#This Row],[Datum der Beschaffung]],Inventarverzeichnis[[#This Row],[Heutiges Datum]],"m"),"") -> 11 | M28: =IF(Inventarverzeichnis[[#This Row],[Neuwert]]>0,Inventarverzeichnis[[#This Row],[Neuwert]]-Inventarverzeichnis[[#This Row],[Monatlicher Abschreibungswert]]*Inventarverzeichnis[[#This Row],[Lauf-zeit bisher]],"") -> 55.36458333 | N28: =IF(Inventarverzeichnis[[#This Row],[Abschreibung]]>1,Inventarverzeichnis[[#This Row],[Abschreibung]],1) -> 55.36458333 | O28: Gst
A29: 25 | B29: 2025-05-01 | C29: 2 | D29: Bodenmatten | E29: 87.96 | G29: 8 | H29: =IF(Inventarverzeichnis[[#This Row],[Neuwert]]>0,Inventarverzeichnis[[#This Row],[Lauf-zeit in Jahren]]*12,"") -> 96 | I29: 1 | J29: =IF(Inventarverzeichnis[[#This Row],[Neuwert]]>0,SLN(Inventarverzeichnis[[#This Row],[Neuwert]],Inventarverzeichnis[[#This Row],[Wert nach Ende der Abschreibung]],Inventarverzeichnis[[#This Row],[Lauf-zeit in Jahren]])/12,"") -> 0.9058333333 | K29: =IF(Inventarverzeichnis[[#This Row],[Neuwert]]>0,TODAY(),"") -> 2026-03-04 | L29: =IF(Inventarverzeichnis[[#This Row],[Neuwert]]>0,DATEDIF(Inventarverzeichnis[[#This Row],[Datum der Beschaffung]],Inventarverzeichnis[[#This Row],[Heutiges Datum]],"m"),"") -> 10 | M29: =IF(Inventarverzeichnis[[#This Row],[Neuwert]]>0,Inventarverzeichnis[[#This Row],[Neuwert]]-Inventarverzeichnis[[#This Row],[Monatlicher Abschreibungswert]]*Inventarverzeichnis[[#This Row],[Lauf-zeit bisher]],"") -> 78.90166667 | N29: =IF(Inventarverzeichnis[[#This Row],[Abschreibung]]>1,Inventarverzeichnis[[#This Row],[Abschreibung]],1) -> 78.90166667 | O29: Gst
A30: 26 | B30: 2025-06-01 | C30: 1 | D30: Air Cooler | E30: 50 | G30: 3 | H30: =IF(Inventarverzeichnis[[#This Row],[Neuwert]]>0,Inventarverzeichnis[[#This Row],[Lauf-zeit in Jahren]]*12,"") -> 36 | I30: 1 | J30: =IF(Inventarverzeichnis[[#This Row],[Neuwert]]>0,SLN(Inventarverzeichnis[[#This Row],[Neuwert]],Inventarverzeichnis[[#This Row],[Wert nach Ende der Abschreibung]],Inventarverzeichnis[[#This Row],[Lauf-zeit in Jahren]])/12,"") -> 1.361111111 | K30: =IF(Inventarverzeichnis[[#This Row],[Neuwert]]>0,TODAY(),"") -> 2026-03-04 | L30: =IF(Inventarverzeichnis[[#This Row],[Neuwert]]>0,DATEDIF(Inventarverzeichnis[[#This Row],[Datum der Beschaffung]],Inventarverzeichnis[[#This Row],[Heutiges Datum]],"m"),"") -> 9 | M30: =IF(Inventarverzeichnis[[#This Row],[Neuwert]]>0,Inventarverzeichnis[[#This Row],[Neuwert]]-Inventarverzeichnis[[#This Row],[Monatlicher Abschreibungswert]]*Inventarverzeichnis[[#This Row],[Lauf-zeit bisher]],"") -> 37.75 | N30: =IF(Inventarverzeichnis[[#This Row],[Abschreibung]]>1,Inventarverzeichnis[[#This Row],[Abschreibung]],1) -> 37.75 | O30: Gst
A31: 27 | B31: 2025-08-01 | C31: 1 | D31: Würstchenwärmer | E31: 312.95 | G31: 3 | H31: =IF(Inventarverzeichnis[[#This Row],[Neuwert]]>0,Inventarverzeichnis[[#This Row],[Lauf-zeit in Jahren]]*12,"") -> 36 | I31: 1 | J31: =IF(Inventarverzeichnis[[#This Row],[Neuwert]]>0,SLN(Inventarverzeichnis[[#This Row],[Neuwert]],Inventarverzeichnis[[#This Row],[Wert nach Ende der Abschreibung]],Inventarverzeichnis[[#This Row],[Lauf-zeit in Jahren]])/12,"") -> 8.665277778 | K31: =IF(Inventarverzeichnis[[#This Row],[Neuwert]]>0,TODAY(),"") -> 2026-03-04 | L31: =IF(Inventarverzeichnis[[#This Row],[Neuwert]]>0,DATEDIF(Inventarverzeichnis[[#This Row],[Datum der Beschaffung]],Inventarverzeichnis[[#This Row],[Heutiges Datum]],"m"),"") -> 7 | M31: =IF(Inventarverzeichnis[[#This Row],[Neuwert]]>0,Inventarverzeichnis[[#This Row],[Neuwert]]-Inventarverzeichnis[[#This Row],[Monatlicher Abschreibungswert]]*Inventarverzeichnis[[#This Row],[Lauf-zeit bisher]],"") -> 252.2930556 | N31: =IF(Inventarverzeichnis[[#This Row],[Abschreibung]]>1,Inventarverzeichnis[[#This Row],[Abschreibung]],1) -> 252.2930556 | O31: Gst
A32: 28 | B32: 2025-12-01 | C32: 2 | D32: Bürosessel | E32: 369.98 | G32: 8 | H32: =IF(Inventarverzeichnis[[#This Row],[Neuwert]]>0,Inventarverzeichnis[[#This Row],[Lauf-zeit in Jahren]]*12,"") -> 96 | I32: 1 | J32: =IF(Inventarverzeichnis[[#This Row],[Neuwert]]>0,SLN(Inventarverzeichnis[[#This Row],[Neuwert]],Inventarverzeichnis[[#This Row],[Wert nach Ende der Abschreibung]],Inventarverzeichnis[[#This Row],[Lauf-zeit in Jahren]])/12,"") -> 3.843541667 | K32: =IF(Inventarverzeichnis[[#This Row],[Neuwert]]>0,TODAY(),"") -> 2026-03-04 | L32: =IF(Inventarverzeichnis[[#This Row],[Neuwert]]>0,DATEDIF(Inventarverzeichnis[[#This Row],[Datum der Beschaffung]],Inventarverzeichnis[[#This Row],[Heutiges Datum]],"m"),"") -> 3 | M32: =IF(Inventarverzeichnis[[#This Row],[Neuwert]]>0,Inventarverzeichnis[[#This Row],[Neuwert]]-Inventarverzeichnis[[#This Row],[Monatlicher Abschreibungswert]]*Inventarverzeichnis[[#This Row],[Lauf-zeit bisher]],"") -> 358.449375 | N32: =IF(Inventarverzeichnis[[#This Row],[Abschreibung]]>1,Inventarverzeichnis[[#This Row],[Abschreibung]],1) -> 358.449375 | O32: Gst
B33: Zeitwert des Sachwertvermögens: | N33: =SUM(N5:N32) -> 5651.598125
